bitfinex/quotes_BTCUSD_20240611
["timestamp","ask_amount","ask_price","bid_price","bid_amount"]
[1718073910688,0.341009,68029.0,68028.0,1.04181593]
[1718073911967,0.341009,68029.0,68028.0,0.246998]
[1718073912220,0.341009,68029.0,68028.0,0.249998]
[1718073912389,0.341009,68029.0,68028.0,0.74281393]
[1718073913548,0.30913389,68029.0,68028.0,1.19161393]
[1718073913752,0.30913389,68029.0,68028.0,1.50860993]
[1718073913968,0.17503001,68029.0,68028.0,1.50860993]
[1718073914431,0.808,68052.0,68030.0,0.005]
[1718073914645,0.43295979,68049.0,68048.0,0.603355]
[1718073914860,0.28643,68049.0,68048.0,0.4564]
[1718073915075,0.25197492,68049.0,68048.0,1.06458493]
[1718073915289,0.16641917,68049.0,68048.0,1.51809493]
[1718073915494,0.43295979,68068.0,68067.0,0.146914]
[1718073915930,0.08460966,68072.0,68070.0,0.146907]
[1718073916172,0.00859,68073.0,68063.0,0.4533]
[1718073916173,0.58765,68068.0,68063.0,0.4533]
[1718073916394,0.58765,68068.0,68067.0,0.146914]
[1718073916594,0.58765,68068.0,68067.0,0.58506193]
[1718073916805,0.58765,68068.0,68067.0,0.76156193]
[1718073916806,0.58360397,68068.0,68067.0,0.76156193]
[1718073917052,0.58360397,68068.0,68067.0,0.86156193]
[1718073917493,0.58360397,68068.0,68067.0,0.56773393]
[1718073917923,0.58360397,68068.0,68067.0,0.86156193]
[1718073918419,0.41711796,68068.0,68067.0,0.87056193]
[1718073918646,0.41076796,68068.0,68067.0,0.89356193]
[1718073918887,0.37135846,68068.0,68067.0,1.34696193]
[1718073919107,0.4708,68098.0,68086.0,0.146873]
[1718073919371,0.43295979,68092.0,68089.0,0.45598934]
[1718073919602,0.47209966,68087.0,68086.0,0.717119]
[1718073919855,0.47209966,68087.0,68086.0,0.86143893]
[1718073920101,0.47209966,68087.0,68086.0,0.68493893]
[1718073920872,0.46955872,68087.0,68086.0,0.68493893]
[1718073921053,0.46955872,68087.0,68086.0,0.72098567]
[1718073921265,0.43698291,68087.0,68086.0,0.68493893]
[1718073921441,0.43389711,68087.0,68086.0,0.70793893]
[1718073921644,0.43389711,68087.0,68086.0,0.74398567]
[1718073921930,0.43389711,68087.0,68086.0,0.70793893]
[1718073922171,0.43389711,68087.0,68086.0,0.71093893]
[1718073922601,0.36779711,68087.0,68086.0,1.32133893]
[1718073922808,0.35022711,68087.0,68086.0,1.61508493]
[1718073923078,0.35022711,68087.0,68086.0,1.65354112]
[1718073923300,0.35022711,68087.0,68086.0,1.61808493]
[1718073923486,0.34846411,68087.0,68086.0,1.61908493]
[1718073923691,0.34846411,68087.0,68086.0,1.61008493]
[1718073924112,0.34846411,68087.0,68086.0,1.38377041]
[1718073924535,0.34846411,68087.0,68086.0,1.20727041]
[1718073924740,0.34846411,68087.0,68086.0,1.20627041]
[1718073925159,0.34846411,68087.0,68086.0,1.20727041]
[1718073925361,0.34846411,68087.0,68086.0,1.18727041]
[1718073925978,0.32816411,68087.0,68086.0,1.18727041]
[1718073926120,0.32816411,68087.0,68086.0,1.47801641]
[1718073926327,0.32816411,68087.0,68086.0,1.50101641]
[1718073926529,0.32816411,68087.0,68086.0,1.50001641]
[1718073926733,0.32816411,68087.0,68086.0,1.50301641]
[1718073926942,0.32816411,68087.0,68086.0,1.50401641]
[1718073927165,0.29616411,68087.0,68086.0,1.50001641]
[1718073927518,0.27833611,68087.0,68086.0,1.65961641]
[1718073927708,0.27833611,68087.0,68086.0,1.69507539]
[1718073928168,0.26815311,68087.0,68086.0,1.66061641]
[1718073928384,0.25919887,68087.0,68086.0,1.69607539]
[1718073928610,0.25919887,68087.0,68086.0,1.69507539]
[1718073928817,0.25919887,68087.0,68086.0,1.65961641]
[1718073929036,0.00859,68103.0,68096.0,0.005]
[1718073929203,0.00859,68103.0,68097.0,0.47274493]
[1718073929455,0.41087,68102.0,68099.0,0.293689]
[1718073929634,0.41087,68102.0,68101.0,0.1765]
[1718073929839,0.41087,68102.0,68101.0,1.16002193]
[1718073929840,0.34287,68102.0,68101.0,1.16002193]
[1718073930045,0.29422,68102.0,68101.0,1.37308091]
[1718073930242,0.27876,68102.0,68101.0,1.37308091]
[1718073930446,0.2231644,68102.0,68101.0,1.33762193]
[1718073930656,0.2231644,68102.0,68101.0,1.37308091]
[1718073930888,0.1399944,68102.0,68101.0,1.33762193]
[1718073931088,0.1399944,68102.0,68101.0,1.16412193]
[1718073931304,0.1399944,68102.0,68101.0,1.34162193]
[1718073931305,0.1385144,68102.0,68101.0,1.34162193]
[1718073931510,0.1215144,68102.0,68101.0,1.37778641]
[1718073931727,0.0325144,68102.0,68101.0,1.37678641]
[1718073932134,0.0325144,68102.0,68101.0,1.21718641]
[1718073932338,0.0325144,68102.0,68101.0,0.68484093]
[1718073933381,0.0325144,68102.0,68101.0,0.68884093]
[1718073933597,0.0325144,68102.0,68101.0,0.68784093]
[1718073933789,0.0325144,68102.0,68101.0,0.68484093]
[1718073934217,0.0325144,68102.0,68101.0,0.68884093]
[1718073934841,0.01651243,68102.0,68101.0,0.89743818]
[1718073934973,0.01515108,68102.0,68101.0,0.89743818]
[1718073935155,0.01515108,68102.0,68101.0,0.91523477]
[1718073935768,0.01515108,68102.0,68101.0,0.91223477]
[1718073935980,0.00615108,68103.0,68102.0,0.005]
[1718073936192,0.30888899,68102.0,68101.0,0.81981484]
[1718073936410,0.29388899,68102.0,68101.0,1.35881577]
[1718073936606,0.29388899,68102.0,68101.0,1.40148798]
[1718073936811,0.27788899,68102.0,68101.0,1.60368798]
[1718073937057,0.27358899,68102.0,68101.0,1.55595498]
[1718073937260,0.27358899,68102.0,68101.0,1.68878277]
[1718073937492,0.27358899,68102.0,68101.0,1.35481577]
[1718073937691,0.25644899,68102.0,68101.0,1.57498798]
[1718073937899,0.20851899,68102.0,68101.0,1.53131577]
[1718073938728,0.20613064,68102.0,68101.0,1.53131577]
[1718073938925,0.20613064,68102.0,68101.0,1.51131577]
[1718073939145,0.20613064,68102.0,68101.0,1.21763477]
[1718073939352,0.20613064,68102.0,68101.0,1.04113477]
[1718073939575,0.20613064,68102.0,68101.0,0.72863477]
[1718073939790,0.20613064,68102.0,68101.0,0.73263477]
[1718073940000,0.20613064,68102.0,68101.0,0.73163477]
[1718073940418,0.19987059,68102.0,68101.0,0.72963477]
[1718073940629,0.19987059,68102.0,68101.0,0.73163477]
[1718073940840,0.19487059,68102.0,68101.0,0.73163477]
[1718073941048,0.19487059,68102.0,68101.0,0.73263477]
[1718073941452,0.19487059,68102.0,68101.0,0.73163477]
[1718073941866,0.15206059,68102.0,68101.0,1.02531577]
[1718073942065,0.00859,68114.0,68102.0,0.146838]
[1718073942287,0.00859,68114.0,68113.0,0.146814]
[1718073942500,0.19616607,68113.0,68107.0,0.293652]
[1718073942704,0.19616607,68113.0,68112.0,0.146817]
[1718073944097,0.19616607,68113.0,68112.0,0.149817]
[1718073944292,0.66546607,68113.0,68112.0,0.150817]
[1718073944713,0.66546607,68113.0,68112.0,0.250817]
[1718073945523,0.19616607,68113.0,68112.0,0.541451]
[1718073945759,0.19616607,68113.0,68112.0,0.247817]
[1718073945973,0.19616607,68113.0,68112.0,0.250817]
[1718073946219,0.19616607,68113.0,68112.0,0.249817]
[1718073946437,0.19616607,68113.0,68112.0,0.246817]
[1718073946672,0.19616607,68113.0,68112.0,0.250817]
[1718073946879,0.19616607,68113.0,68112.0,0.249817]
[1718073947316,0.19616607,68113.0,68112.0,0.250817]
[1718073947524,1.2736,68132.0,68112.0,0.69655393]
[1718073947728,0.2,68131.0,68122.0,0.146795]
[1718073947899,0.2,68133.0,68122.0,0.246795]
[1718073948133,0.2,68131.0,68122.0,0.246795]
[1718073948480,0.59576,68123.0,68122.0,0.246795]
[1718073949273,0.59576,68123.0,68122.0,0.540385]
[1718073949894,0.59576,68123.0,68122.0,0.543385]
[1718073950527,0.59576,68123.0,68122.0,0.544385]
[1718073952587,0.59576,68123.0,68122.0,0.543385]
[1718073952803,0.59576,68123.0,68122.0,0.247795]
[1718073953011,1.27426,68123.0,68122.0,0.250795]
[1718073953219,1.58116,68123.0,68122.0,0.149795]
[1718073953447,1.58116,68123.0,68122.0,0.150795]
[1718073953659,1.68116,68123.0,68122.0,0.147795]
[1718073953896,1.36116,68123.0,68122.0,0.146795]
[1718073954109,0.59576,68123.0,68122.0,0.441385]
[1718073954523,0.59576,68123.0,68122.0,0.440385]
[1718073955182,0.59576,68123.0,68122.0,0.540385]
[1718073955806,0.59576,68123.0,68122.0,0.543385]
[1718073956227,0.59576,68123.0,68122.0,0.541385]
[1718073956442,0.59576,68123.0,68122.0,0.540385]
[1718073956672,0.59576,68123.0,68122.0,0.56208898]
[1718073961475,0.81576,68123.0,68122.0,0.56208898]
[1718073961680,0.59576,68123.0,68122.0,0.56208898]
[1718073962448,0.79576,68123.0,68122.0,0.55908898]
[1718073962682,0.79576,68123.0,68122.0,0.26449898]
[1718073962683,0.92586,68123.0,68122.0,0.26449898]
[1718073962883,0.92586,68123.0,68122.0,0.56108898]
[1718073963120,0.59576,68123.0,68122.0,0.73858898]
[1718073963872,0.59576,68123.0,68122.0,0.73458898]
[1718073964286,0.59576,68123.0,68122.0,0.73858898]
[1718073964485,0.59576,68123.0,68122.0,0.73758898]
[1718073964922,1.12586,68123.0,68122.0,0.56108898]
[1718073965327,0.92586,68123.0,68122.0,0.56108898]
[1718073965744,0.92586,68123.0,68122.0,0.55808898]
[1718073966171,1.12586,68123.0,68122.0,0.55908898]
[1718073966385,1.14586,68123.0,68122.0,0.26449898]
[1718073966799,1.14586,68123.0,68122.0,0.26849898]
[1718073967005,1.62436,68123.0,68122.0,0.26849898]
[1718073967209,1.62436,68123.0,68122.0,0.26449898]
[1718073967413,1.72436,68123.0,68122.0,0.26549898]
[1718073967669,1.72436,68123.0,68122.0,0.26849898]
[1718073967880,1.72436,68123.0,68122.0,0.26749898]
[1718073968334,0.32,68113.0,68112.0,0.00017673]
[1718073968546,1.57338,68113.0,68112.0,0.14699373]
[1718073968795,1.55338,68113.0,68112.0,0.14699373]
[1718073968987,1.35338,68113.0,68112.0,0.14699373]
[1718073969186,1.57338,68113.0,68112.0,0.14699373]
[1718073969554,1.67338,68113.0,68112.0,0.16460794]
[1718073969931,1.67338,68113.0,68112.0,0.16560794]
[1718073970135,1.35338,68113.0,68112.0,0.16560794]
[1718073970337,1.57338,68113.0,68112.0,0.16460794]
[1718073970766,1.57338,68113.0,68112.0,0.16860794]
[1718073970928,1.57338,68113.0,68112.0,0.16760794]
[1718073971122,1.57338,68113.0,68112.0,0.26760794]
[1718073971373,1.57338,68113.0,68112.0,0.26860794]
[1718073972815,1.57338,68113.0,68112.0,0.26760794]
[1718073973045,1.57338,68113.0,68112.0,0.26860794]
[1718073973456,0.58718,68113.0,68112.0,0.26860794]
[1718073974104,0.58718,68113.0,68112.0,0.56224194]
[1718073974507,0.57652551,68113.0,68112.0,0.60148899]
[1718073974928,0.57652551,68113.0,68112.0,0.74380892]
[1718073975336,0.57652551,68113.0,68112.0,0.98132672]
[1718073975753,0.57652551,68113.0,68112.0,0.89360892]
[1718073976171,0.57652551,68113.0,68112.0,1.00325617]
[1718073976585,0.57652551,68113.0,68112.0,0.89560892]
[1718073976796,0.57652551,68113.0,68112.0,0.89555492]
[1718073977009,0.57652551,68113.0,68112.0,0.98132926]
[1718073977426,0.57652551,68113.0,68112.0,0.98432926]
[1718073977640,0.49280135,68113.0,68112.0,0.98332926]
[1718073977872,0.49280135,68113.0,68112.0,1.18918892]
[1718073978066,0.49280135,68113.0,68112.0,1.29983617]
[1718073978280,0.48929135,68113.0,68112.0,1.26443167]
[1718073978901,0.48929135,68113.0,68112.0,1.26343167]
[1718073979109,0.48929135,68113.0,68112.0,1.26443167]
[1718073979550,0.47135652,68113.0,68112.0,1.26243167]
[1718073979981,0.47135652,68113.0,68112.0,1.26443167]
[1718073980928,0.47135652,68113.0,68112.0,1.29063389]
[1718073981785,0.40449652,68113.0,68112.0,1.29063389]
[1718073982210,0.40449652,68113.0,68112.0,1.31733389]
[1718073982418,0.40449652,68113.0,68112.0,0.79065728]
[1718073982693,0.40449652,68113.0,68112.0,0.78865728]
[1718073982931,0.40449652,68113.0,68112.0,0.70087996]
[1718073983137,0.40449652,68113.0,68112.0,0.70287996]
[1718073983566,0.40449652,68113.0,68112.0,0.70087996]
[1718073983781,0.40449652,68113.0,68112.0,0.70287996]
[1718073983997,0.40449652,68113.0,68112.0,0.70187996]
[1718073984420,0.40449652,68113.0,68112.0,0.70087996]
[1718073984626,0.40449652,68113.0,68112.0,0.40624596]
[1718073984855,0.40449652,68113.0,68112.0,0.66163291]
[1718073985063,0.40449652,68113.0,68112.0,0.66263291]
[1718073985268,0.4041069,68113.0,68112.0,0.36899891]
[1718073985685,0.4041069,68113.0,68112.0,0.36799891]
[1718073986154,0.4041069,68113.0,68112.0,0.36599891]
[1718073986324,0.4041069,68113.0,68112.0,0.36799891]
[1718073986757,0.4041069,68113.0,68112.0,0.36599891]
[1718073987163,0.4041069,68113.0,68112.0,0.36799891]
[1718073987601,0.4041069,68113.0,68112.0,0.40824983]
[1718073987808,0.4041069,68113.0,68112.0,0.40724983]
[1718073988070,0.4041069,68113.0,68112.0,0.40824983]
[1718073988298,0.4041069,68113.0,68112.0,0.40924983]
[1718073989006,0.4041069,68113.0,68112.0,0.70288383]
[1718073989235,0.4041069,68113.0,68112.0,0.70188383]
[1718073989437,0.4041069,68113.0,68112.0,0.70088383]
[1718073989860,0.4041069,68113.0,68112.0,0.87938383]
[1718073990275,0.4041069,68113.0,68112.0,0.87738383]
[1718073990684,0.4041069,68113.0,68112.0,0.87938383]
[1718073991138,0.4041069,68113.0,68112.0,0.87738383]
[1718073991546,0.4041069,68113.0,68112.0,0.87638383]
[1718073991844,0.4041069,68113.0,68112.0,0.87738383]
[1718073992052,0.4041069,68113.0,68112.0,0.87638383]
[1718073992370,0.4041069,68113.0,68112.0,0.92127753]
[1718073992586,0.4041069,68113.0,68112.0,0.70088383]
[1718073992846,0.4041069,68113.0,68112.0,0.74678835]
[1718073993101,0.4041069,68113.0,68112.0,0.70288383]
[1718073993328,0.3991069,68113.0,68112.0,0.70088383]
[1718073993551,0.3991069,68113.0,68112.0,0.70288383]
[1718073994207,0.2799879,68113.0,68112.0,1.13883776]
[1718073994418,0.2799879,68113.0,68112.0,1.35449487]
[1718073994641,0.2799879,68113.0,68112.0,1.39739961]
[1718073994842,0.2799879,68113.0,68112.0,1.28763776]
[1718073995054,0.2799879,68113.0,68112.0,1.60013776]
[1718073995270,0.27421927,68113.0,68112.0,1.60013776]
[1718073995481,2.7e-07,68113.0,68112.0,2.07037176]
[1718073995708,0.58726,68113.0,68112.0,1.18946976]
[1718073996125,0.00658,68126.0,68125.0,0.146788]
[1718073996347,0.59373,68126.0,68125.0,1.1414016]
[1718073996773,0.56173,68126.0,68125.0,1.1414016]
[1718073997194,0.443,68126.0,68125.0,1.22919846]
[1718073997395,0.431,68126.0,68125.0,1.9061556]
[1718073997596,0.431,68126.0,68125.0,2.0354996]
[1718073997806,0.431,68126.0,68125.0,1.96125685]
[1718073998005,0.399264,68126.0,68125.0,2.03356778]
[1718073998213,0.33694591,68126.0,68125.0,2.03356778]
[1718073998412,0.32540599,68126.0,68125.0,2.16520876]
[1718073998613,0.32540599,68126.0,68125.0,2.16620876]
[1718073998848,0.32540599,68126.0,68125.0,2.09189783]
[1718073999018,9.9e-07,68126.0,68125.0,2.16518482]
[1718073999229,0.4958,68151.0,68150.0,0.440205]
[1718073999437,0.4958,68151.0,68150.0,0.61449199]
[1718073999691,0.58694,68151.0,68150.0,0.61449199]
[1718074000101,0.58694,68151.0,68150.0,0.6146503]
[1718074000246,0.58694,68151.0,68150.0,0.65486986]
[1718074000472,0.58694,68151.0,68150.0,0.6146503]
[1718074000857,0.89784,68151.0,68150.0,0.6146503]
[1718074001282,0.89784,68151.0,68150.0,0.6166503]
[1718074001705,1.39364,68151.0,68150.0,0.3241803]
[1718074002136,1.39364,68151.0,68150.0,0.248735]
[1718074002377,1.39364,68151.0,68150.0,0.32412411]
[1718074002600,1.59364,68151.0,68150.0,0.32412411]
[1718074002835,1.59364,68151.0,68150.0,0.32112411]
[1718074002836,1.39364,68151.0,68150.0,0.32112411]
[1718074003036,1.39364,68151.0,68150.0,0.32212411]
[1718074003256,1.39364,68151.0,68150.0,0.32412411]
[1718074003669,1.61364,68151.0,68150.0,0.32212411]
[1718074003870,1.61364,68151.0,68150.0,0.22212411]
[1718074004089,1.61364,68151.0,68150.0,0.22412411]
[1718074004090,1.71364,68151.0,68150.0,0.22412411]
[1718074004293,1.71364,68151.0,68150.0,0.22424694]
[1718074004519,0.6819,68138.0,68137.0,0.04951907]
[1718074004720,1.04884,68138.0,68137.0,0.12403913]
[1718074004920,1.04884,68138.0,68137.0,0.07452006]
[1718074005126,1.04884,68138.0,68137.0,0.53276318]
[1718074005127,0.58694,68138.0,68137.0,0.53276318]
[1718074005339,0.58694,68138.0,68137.0,1.45660911]
[1718074005751,0.58694,68138.0,68137.0,1.4968181]
[1718074005951,0.52559,68138.0,68137.0,1.5968181]
[1718074006159,0.52559,68138.0,68137.0,1.5978181]
[1718074006794,0.52559,68138.0,68137.0,1.8913441]
[1718074007002,0.49659,68138.0,68137.0,2.0689441]
[1718074007215,0.478845,68138.0,68137.0,2.3674441]
[1718074007622,0.471845,68138.0,68137.0,2.51491004]
[1718074008043,0.461845,68138.0,68137.0,2.51391004]
[1718074008243,0.408645,68138.0,68137.0,2.51291004]
[1718074008660,0.408645,68138.0,68137.0,2.51391004]
[1718074009503,0.408645,68138.0,68137.0,2.51591004]
[1718074009975,0.408645,68138.0,68137.0,2.57457904]
[1718074010376,0.407645,68138.0,68137.0,2.57457904]
[1718074010998,0.407645,68138.0,68137.0,2.86419438]
[1718074011210,0.389691,68138.0,68137.0,2.86419438]
[1718074011649,0.378691,68138.0,68137.0,2.86419438]
[1718074012293,0.361691,68138.0,68137.0,2.86419438]
[1718074012888,0.328691,68138.0,68137.0,2.86419438]
[1718074013126,0.00086,68151.0,68150.0,0.733675]
[1718074013324,0.00086,68151.0,68150.0,1.22901499]
[1718074013505,0.5878,68151.0,68150.0,1.22901499]
[1718074014354,0.5878,68151.0,68150.0,1.23101499]
[1718074015372,0.5878,68151.0,68150.0,1.23201499]
[1718074015490,0.57781,68151.0,68150.0,1.23201499]
[1718074015694,0.53721,68151.0,68150.0,1.23101499]
[1718074016028,0.53721,68151.0,68150.0,1.05351499]
[1718074016229,0.53721,68151.0,68150.0,1.23101499]
[1718074016624,0.4708,68165.0,68164.0,0.733525]
[1718074016812,0.3041,68177.0,68164.0,1.39674999]
[1718074017022,0.3041,68177.0,68176.0,0.440037]
[1718074017218,0.3041,68177.0,68176.0,0.61455706]
[1718074017431,1.38721,68177.0,68176.0,0.61455706]
[1718074018480,0.58671,68177.0,68176.0,0.61452097]
[1718074018653,0.58671,68177.0,68176.0,0.79102097]
[1718074019490,0.58671,68177.0,68176.0,0.79202097]
[1718074020154,0.58671,68177.0,68176.0,0.79402097]
[1718074020364,0.54468,68177.0,68176.0,0.79402097]
[1718074020737,0.54468,68177.0,68176.0,0.61752097]
[1718074020897,0.54468,68177.0,68176.0,0.79402097]
[1718074021096,0.54468,68177.0,68176.0,0.79202097]
[1718074021702,0.54468,68177.0,68176.0,0.79102097]
[1718074022108,0.54468,68177.0,68176.0,0.79202097]
[1718074022311,0.54468,68177.0,68176.0,0.79102097]
[1718074022512,0.42462,68177.0,68176.0,1.9912989]
[1718074022711,0.42462,68177.0,68176.0,2.0152989]
[1718074022712,0.37562,68177.0,68176.0,2.0152989]
[1718074022961,0.37562,68177.0,68176.0,2.0162989]
[1718074023148,0.32762,68177.0,68176.0,2.04246937]
[1718074023365,0.31762,68177.0,68176.0,2.04146937]
[1718074023557,1e-06,68177.0,68176.0,2.33382737]
[1718074023718,1e-06,68177.0,68176.0,2.48180707]
[1718074023926,1e-08,68182.0,68181.0,0.14663]
[1718074024136,0.58667001,68182.0,68181.0,0.6430339]
[1718074024337,0.58667001,68182.0,68181.0,1.8325419]
[1718074024546,0.54220348,68182.0,68181.0,2.6623839]
[1718074024760,0.52520348,68182.0,68181.0,2.8083636]
[1718074025171,0.49220348,68182.0,68181.0,2.8083636]
[1718074025386,0.49220348,68182.0,68181.0,2.81120254]
[1718074025593,0.49220348,68182.0,68181.0,2.77181354]
[1718074025794,0.49220348,68182.0,68181.0,2.67875054]
[1718074026009,0.49220348,68182.0,68181.0,2.56011554]
[1718074026216,0.49220348,68182.0,68181.0,2.56211554]
[1718074026431,0.3223929,68182.0,68181.0,3.06211554]
[1718074026642,0.2710929,68182.0,68181.0,3.06311554]
[1718074026850,0.2710929,68182.0,68181.0,3.06111554]
[1718074027051,0.2710929,68182.0,68181.0,3.10644244]
[1718074027255,9e-07,68192.0,68191.0,0.887832]
[1718074027471,0.1806477,68200.0,68199.0,0.293259]
[1718074027679,0.1806477,68200.0,68199.0,0.46795536]
[1718074027880,0.7671577,68200.0,68199.0,0.32132536]
[1718074028509,0.7501577,68200.0,68199.0,0.61458436]
[1718074028744,0.7501577,68200.0,68199.0,1.52150429]
[1718074028745,0.48826939,68200.0,68199.0,1.52150429]
[1718074028974,0.46044814,68200.0,68199.0,2.17426329]
[1718074029190,0.45865814,68200.0,68199.0,1.57150429]
[1718074029400,0.45865814,68200.0,68199.0,1.29561029]
[1718074029643,0.45865814,68200.0,68199.0,1.27161029]
[1718074029843,0.45865814,68200.0,68199.0,1.12847087]
[1718074030265,0.45865814,68200.0,68199.0,1.12747087]
[1718074030497,0.45865814,68200.0,68199.0,1.24005882]
[1718074030909,0.45865814,68200.0,68199.0,0.77129982]
[1718074031140,0.45865814,68200.0,68199.0,0.43479982]
[1718074031352,0.45865814,68200.0,68199.0,0.32121187]
[1718074031569,1.25195814,68200.0,68199.0,0.22350587]
[1718074032240,1.47195814,68200.0,68199.0,0.22350587]
[1718074032445,1.47195814,68200.0,68199.0,0.22450587]
[1718074032658,1.25195814,68200.0,68199.0,0.22350587]
[1718074033096,1.25195814,68200.0,68199.0,0.22250587]
[1718074033310,1.25195814,68200.0,68199.0,0.32250587]
[1718074033529,1.25195814,68200.0,68199.0,0.32450587]
[1718074033941,1.25195814,68200.0,68199.0,0.32150587]
[1718074034147,1.25195814,68200.0,68199.0,0.32250587]
[1718074034388,1.25195814,68200.0,68199.0,0.32450587]
[1718074034810,1.25195814,68200.0,68199.0,0.32250587]
[1718074035017,1.47195814,68200.0,68199.0,0.32250587]
[1718074035228,1.47195814,68200.0,68199.0,0.32450587]
[1718074035446,1.25195814,68200.0,68199.0,0.32350587]
[1718074035683,1.25195814,68200.0,68199.0,0.4350443]
[1718074035902,1.47195814,68200.0,68199.0,0.32450587]
[1718074036118,1.25195814,68200.0,68199.0,0.32450587]
[1718074036325,1.81627807,68200.0,68199.0,0.22450587]
[1718074036527,0.22,68194.0,68193.0,0.14664]
[1718074036754,1.47095814,68194.0,68193.0,0.14664]
[1718074037894,1.47095814,68194.0,68193.0,0.14864]
[1718074038117,1.47095814,68194.0,68193.0,0.24864]
[1718074038348,1.25095814,68194.0,68193.0,0.24664]
[1718074038559,1.47095814,68194.0,68193.0,0.24664]
[1718074039196,1.71527807,68194.0,68193.0,0.24764]
[1718074039411,1.71527807,68194.0,68193.0,0.001]
[1718074039412,1.81527807,68194.0,68193.0,0.001]
[1718074039620,0.22,68188.0,68178.0,0.04965352]
[1718074039829,0.45865814,68187.0,68178.0,0.04965352]
[1718074040037,0.7934,68186.0,68178.0,0.22615352]
[1718074040243,0.45865814,68185.0,68178.0,0.22615352]
[1718074041075,0.45865814,68185.0,68179.0,0.1]
[1718074041276,0.45865814,68185.0,68184.0,0.146661]
[1718074041481,0.45865814,68185.0,68184.0,0.246661]
[1718074041689,0.65865814,68185.0,68184.0,0.246661]
[1718074041897,0.45865814,68185.0,68184.0,0.246661]
[1718074042327,0.45280235,68185.0,68184.0,0.246661]
[1718074042560,0.43177202,68207.0,68184.0,0.246661]
[1718074042561,0.43177202,68207.0,68206.0,0.146614]
[1718074042796,0.00858,68207.0,68206.0,0.423114]
[1718074043025,0.4765,68208.0,68206.0,0.423114]
[1718074043026,0.29435832,68208.0,68206.0,0.423114]
[1718074043277,0.3,68212.0,68207.0,0.1]
[1718074043770,0.3,68212.0,68211.0,0.146603]
[1718074044192,0.88641,68212.0,68211.0,0.246603]
[1718074045861,0.58641,68212.0,68211.0,0.71631]
[1718074046111,0.55129014,68212.0,68211.0,0.71631]
[1718074046343,0.55129014,68212.0,68211.0,0.71931]
[1718074046825,0.5396762,68212.0,68211.0,0.71731]
[1718074047270,0.5396762,68212.0,68211.0,0.71831]
[1718074047508,0.4737962,68212.0,68211.0,0.71831]
[1718074047706,0.4737962,68212.0,68211.0,0.71631]
[1718074048146,0.4737962,68212.0,68211.0,0.71831]
[1718074048809,0.4737962,68212.0,68211.0,0.71931]
[1718074048976,0.4737962,68212.0,68211.0,0.76792637]
[1718074048977,0.3568962,68212.0,68211.0,0.76792637]
[1718074049200,0.3495762,68212.0,68211.0,0.71931]
[1718074049776,0.3495762,68212.0,68211.0,1.21991384]
[1718074049983,0.3495762,68212.0,68211.0,1.21691384]
[1718074050217,0.3495762,68212.0,68211.0,1.42213021]
[1718074050218,0.3325662,68212.0,68211.0,1.42213021]
[1718074050414,0.00858,68220.0,68219.0,0.439759]
[1718074050586,0.00858,68220.0,68219.0,1.68627893]
[1718074050587,0.59492,68220.0,68219.0,1.68627893]
[1718074050946,0.58634,68220.0,68219.0,1.68627893]
[1718074051136,0.57752386,68220.0,68219.0,1.72645081]
[1718074051350,0.57752386,68220.0,68219.0,1.90440981]
[1718074051547,0.57752386,68220.0,68219.0,1.86840981]
[1718074051919,0.57020386,68220.0,68219.0,1.86840981]
[1718074052505,0.57020386,68220.0,68219.0,2.16158281]
[1718074052741,0.57020386,68220.0,68219.0,2.01962381]
[1718074052950,0.57020386,68220.0,68219.0,0.75743088]
[1718074053153,0.57020386,68220.0,68219.0,0.540759]
[1718074053363,0.57020386,68220.0,68219.0,0.719259]
[1718074053734,0.57020386,68220.0,68219.0,0.717259]
[1718074054152,0.57020386,68220.0,68219.0,0.719259]
[1718074054351,0.57020386,68220.0,68219.0,0.249586]
[1718074054705,0.57020386,68220.0,68219.0,0.247586]
[1718074055362,0.57020386,68220.0,68219.0,0.146586]
[1718074055363,0.79020386,68220.0,68219.0,0.146586]
[1718074055572,0.79020386,68220.0,68219.0,0.147586]
[1718074055573,0.57020386,68220.0,68219.0,0.147586]
[1718074055788,0.79020386,68220.0,68219.0,0.147586]
[1718074056004,0.57020386,68220.0,68219.0,0.146586]
[1718074056219,0.57020386,68220.0,68219.0,0.148586]
[1718074056430,0.57020386,68220.0,68219.0,0.441759]
[1718074056629,0.57020386,68220.0,68219.0,0.147586]
[1718074057066,0.57020386,68220.0,68219.0,0.248586]
[1718074057519,0.57020386,68220.0,68219.0,0.246586]
[1718074057923,0.57020386,68220.0,68219.0,0.248586]
[1718074058784,0.57020386,68220.0,68219.0,0.249586]
[1718074059001,0.57020386,68220.0,68219.0,0.248586]
[1718074059452,0.57020386,68220.0,68219.0,0.247586]
[1718074059642,0.57020386,68220.0,68219.0,0.248586]
[1718074060061,0.57020386,68220.0,68219.0,0.249586]
[1718074060236,0.57020386,68220.0,68219.0,0.247586]
[1718074060440,0.57020386,68220.0,68219.0,0.246586]
[1718074060645,0.57020386,68220.0,68219.0,0.248586]
[1718074061191,0.79020386,68220.0,68219.0,0.246586]
[1718074061801,1.12300386,68220.0,68219.0,0.246586]
[1718074062003,1.12300386,68220.0,68219.0,0.247586]
[1718074062149,1.71010386,68220.0,68219.0,0.247586]
[1718074062562,1.71010386,68220.0,68219.0,0.248586]
[1718074063338,1.71010386,68220.0,68219.0,0.246586]
[1718074063606,1.71010386,68220.0,68219.0,0.249586]
[1718074064010,1.71010386,68220.0,68219.0,0.247586]
[1718074064351,1.71010386,68220.0,68219.0,0.249586]
[1718074064985,1.71010386,68220.0,68219.0,0.247586]
[1718074065322,1.71010386,68220.0,68219.0,0.248586]
[1718074065531,1.71010386,68220.0,68219.0,0.249586]
[1718074065669,1.71010386,68220.0,68219.0,0.248586]
[1718074066079,1.71010386,68220.0,68219.0,0.249586]
[1718074066285,1.71010386,68220.0,68219.0,0.248586]
[1718074066715,1.71010386,68220.0,68219.0,0.247586]
[1718074067004,1.95442379,68220.0,68219.0,0.247586]
[1718074067153,1.95442379,68220.0,68219.0,0.249586]
[1718074067579,1.95442379,68220.0,68219.0,0.247586]
[1718074067926,1.95442379,68220.0,68219.0,0.103]
[1718074068332,1.96442379,68220.0,68219.0,0.103]
[1718074068555,1.95442379,68220.0,68219.0,0.101]
[1718074068789,1.95442379,68220.0,68219.0,0.1]
[1718074069245,1.95442379,68220.0,68219.0,0.101]
[1718074069486,1.95442379,68220.0,68219.0,0.001]
[1718074069960,1.95442379,68220.0,68219.0,0.003]
[1718074070426,1.95442379,68220.0,68219.0,0.001]
[1718074070629,0.32,68218.0,68217.0,0.1]